fUST/lending_fUST_20250909
["ID","MTS","AMOUNT","RATE_DAILY","PERIOD"]
[384381117,1757356259222,-151.0,0.00019257,2]
[384381118,1757356259232,-151.0,0.00019257,2]
[384381119,1757356259242,-151.0,0.00019257,2]
[384381120,1757356259251,-151.0,0.00019257,2]
[384381121,1757356259260,-151.0,0.00019257,2]
[384381122,1757356259270,-151.0,0.00019257,2]
[384381123,1757356259279,-469.573863,0.00019257,2]
[384381124,1757356259288,-151.0,0.00019257,2]
[384381125,1757356259297,-151.0,0.00019257,2]
[384381126,1757356259306,-469.573863,0.00019257,2]
[384381127,1757356259316,-469.573863,0.00019257,2]
[384381128,1757356259325,-469.573863,0.00019257,2]
[384381129,1757356259334,-151.0,0.00019257,2]
[384381130,1757356259343,-151.0,0.00019257,2]
[384381131,1757356259353,-162.957837,0.00019257,2]
[384381132,1757356259362,-151.0,0.00019257,2]
[384381133,1757356259371,-151.0,0.00019257,2]
[384381134,1757356259380,-151.0,0.00019257,2]
[384381135,1757356259390,-151.0,0.00019257,2]
[384381136,1757356259399,-151.0,0.00019257,2]
[384381137,1757356259409,-151.0,0.00019257,2]
[384381138,1757356259418,-151.0,0.00019257,2]
[384381139,1757356259429,-1060.0,0.00019282,2]
[384381140,1757356259439,-291.60374573,0.00019294,2]
[384381141,1757356259448,-492.91,0.00019452,2]
[384381142,1757356259458,-955.96,0.00019452,2]
[384381143,1757356259467,-500.0,0.00019496,2]
[384381144,1757356259479,-155.314401,0.0001956,2]
[384381145,1757356259490,-4027.0,0.00019593,2]
[384381146,1757356259500,-492.91,0.00019726,2]
[384381147,1757356259511,-955.96,0.00019726,2]
[384381148,1757356259522,-1160.0,0.00019829,2]
[384381149,1757356259535,-19936.98109074,0.000199,2]
[384381150,1757356259547,-5000.0,0.00019967,2]
[384381151,1757356259559,-1300.0,0.0002,2]
[384381152,1757356259570,-493.05,0.0002,2]
[384381153,1757356259580,-4000.0,0.0002,4]
[384381154,1757356259591,-956.08,0.0002,2]
[384381155,1757356259601,-555.765577,0.00020187,2]
[384381156,1757356259612,-1260.0,0.00020377,2]
[384381157,1757356259623,-1000.0,0.00020455,20]
[384381158,1757356259632,-244.0,0.00020455,20]
[384381159,1757356259643,-500.0,0.00020522,2]
[384381160,1757356259652,-1135.948536,0.00020548,2]
[384381161,1757356259662,-1360.0,0.00020925,2]
[384381162,1757356259672,-151.0,0.00021173,2]
[384381163,1757356259681,-151.0,0.00021173,2]
[384381164,1757356259691,-166.646486,0.00021173,2]
[384381165,1757356259700,-151.0,0.00021173,2]
[384381166,1757356259710,-151.0,0.00021173,2]
[384381167,1757356259719,-151.0,0.00021173,2]
[384381168,1757356259730,-19936.98109048,0.00021173,2]
[384381169,1757356259740,-151.0,0.00021221,2]
[384381170,1757356259750,-151.0,0.00021221,2]
[384381171,1757356259759,-151.0,0.00021221,2]
[384381172,1757356259769,-151.0,0.00021221,2]
[384381173,1757356259778,-151.0,0.00021221,2]
[384381174,1757356259787,-151.0,0.00021221,2]
[384381175,1757356259796,-151.0,0.00021221,2]
[384381176,1757356259806,-151.0,0.00021221,2]
[384381177,1757356259816,-151.0,0.00021221,2]
[384381178,1757356259825,-151.0,0.00021221,2]
[384381179,1757356259835,-151.0,0.00021221,2]
[384381180,1757356259844,-153.92388,0.00021221,2]
[384381181,1757356259853,-151.0,0.00021221,2]
[384381182,1757356259862,-151.0,0.00021221,2]
[384381183,1757356259871,-160.0,0.00021276,3]
[384381184,1757356259881,-1460.0,0.00021473,2]
[384381185,1757356259891,-584.60711595,0.000215,2]
[384381186,1757356259900,-2154.0,0.00021505,2]
[384381187,1757356259910,-634.0,0.00021505,2]
[384381188,1757356259919,-409.0,0.00021505,2]
[384381189,1757356259928,-500.0,0.00021548,2]
[384381190,1757356259938,-2100.0,0.00021712,2]
[384381191,1757356259948,-723.33,0.00021917,2]
[384381192,1757356259957,-723.33,0.00021917,2]
[384381193,1757356259968,-723.33,0.00021917,2]
[384381194,1757356259979,-723.33,0.00021917,2]
[384381195,1757356259989,-723.33,0.00021917,2]
[384381196,1757356259998,-723.33,0.00021917,2]
[384381197,1757356260010,-723.33,0.00021917,2]
[384381198,1757356260020,-723.33,0.00021917,2]
[384381199,1757356260031,-723.33,0.00021917,2]
[384381200,1757356260041,-723.33,0.00021917,2]
[384381201,1757356260051,-723.33,0.00021917,2]
[384381202,1757356260061,-723.33,0.00021917,2]
[384381203,1757356260071,-723.33,0.00021917,2]
[384381204,1757356260081,-723.33,0.00021917,2]
[384381205,1757356260092,-723.33,0.00021917,2]
[384381206,1757356260102,-723.33,0.00021917,2]
[384381207,1757356260113,-723.33,0.00021917,2]
[384381208,1757356260122,-723.33,0.00021917,2]
[384381209,1757356260134,-723.33,0.00021917,2]
[384381210,1757356260144,-723.33,0.00021917,2]
[384381211,1757356260154,-723.33,0.00021917,2]
[384381212,1757356260164,-723.33,0.00021917,2]
[384381213,1757356260174,-723.33,0.00021917,2]
[384381214,1757356260184,-723.38974956,0.00021917,2]
[384381215,1757356260194,-151.0,0.00021917,2]
[384381216,1757356260203,-153.0,0.00021918,2]
[384381217,1757356260213,-153.0,0.00021918,2]
[384381218,1757356260222,-153.0,0.00021918,2]
[384381219,1757356260231,-153.0,0.00021918,2]
[384381220,1757356260241,-153.0,0.00021918,2]
[384381221,1757356260250,-153.0,0.00021918,2]
[384381222,1757356260260,-153.0,0.00021918,2]
[384381223,1757356260270,-153.0,0.00021918,2]
[384381224,1757356260279,-153.0,0.00021918,2]
[384381225,1757356260289,-153.0,0.00021918,2]
[384381226,1757356260299,-153.0,0.00021918,2]
[384381227,1757356260308,-153.0,0.00021918,2]
[384381228,1757356260317,-153.0,0.00021918,2]
[384381229,1757356260327,-153.0,0.00021918,2]
[384381230,1757356260337,-153.0,0.00021918,2]
[384381231,1757356260346,-153.0,0.00021918,2]
[384381232,1757356260355,-203.316011,0.00021918,2]
[384381233,1757356260364,-585.636754,0.00021918,2]
[384381234,1757356260373,-585.636754,0.00021918,2]
[384381235,1757356260382,-585.636754,0.00021918,2]
[384381236,1757356260392,-585.636754,0.00021918,2]
[384381237,1757356260401,-1658.295599,0.00021918,2]
[384381238,1757356260410,-1658.295599,0.00021918,2]
[384381239,1757356260420,-1658.295599,0.00021918,2]
[384381240,1757356260429,-1658.295599,0.00021918,2]
[384381241,1757356260438,-151.94344,0.00021918,7]
[384381242,1757356260448,-151.0,0.00021918,7]
[384381243,1757356260458,-151.0,0.00021918,7]
[384381244,1757356260467,-151.0,0.00021918,7]
[384381245,1757356260478,-151.0,0.00021918,7]
[384381246,1757356260488,-370.341663,0.00021918,7]
[384381247,1757356260497,-151.0,0.00021918,7]
[384381248,1757356260507,-370.341663,0.00021918,7]
[384381249,1757356260516,-370.341663,0.00021918,7]
[384381250,1757356260526,-370.341663,0.00021918,7]
[384381251,1757356260536,-771.235,0.00021931,2]
[384381252,1757356260546,-10576.6745308,0.0002199,10]
[384381253,1757356260555,-160.0,0.0002199,10]
[384381254,1757356260564,-151.0,0.0002199,7]
[384381255,1757356260574,-151.0,0.0002199,7]
[384381256,1757356260584,-151.0,0.0002199,7]
[384381257,1757356260594,-151.0,0.0002199,7]
[384381258,1757356260603,-151.0,0.0002199,7]
[384381259,1757356260613,-151.501553,0.0002199,7]
[384381260,1757356260623,-151.0,0.0002199,7]
[384381261,1757356260632,-151.0,0.0002199,7]
[384381262,1757356260642,-151.0,0.0002199,7]
[384381263,1757356260651,-151.0,0.0002199,7]
[384381264,1757356260660,-151.0,0.0002199,7]
[384381265,1757356260670,-151.0,0.0002199,7]
[384381266,1757356260679,-151.0,0.0002199,7]
[384381267,1757356260689,-7022.05,0.00022,7]
[384381268,1757356260698,-3928.26,0.00022,7]
[384381269,1757356260707,-77475.02,0.00022,7]
[384381270,1757356260716,-73975.63,0.00022,2]
[384381271,1757356260726,-160.0,0.00022,7]
[384381272,1757356260735,-10576.6745308,0.00022,7]
[384381273,1757356260745,-151.0,0.00022,7]
[384381274,1757356260754,-151.0,0.00022,7]
[384381275,1757356260764,-152.737725,0.00022,7]
[384381276,1757356260773,-151.0,0.00022,7]
[384381277,1757356260783,-151.0,0.00022,7]
[384381278,1757356260792,-151.0,0.00022,7]
[384381279,1757356260801,-151.0,0.00022,7]
[384381280,1757356260811,-151.0,0.00022,7]
[384381281,1757356260820,-151.0,0.00022,7]
[384381282,1757356260830,-151.0,0.00022,7]
[384381283,1757356260839,-151.0,0.00022,7]
[384381284,1757356260848,-151.0,0.00022,7]
[384381285,1757356260857,-151.0,0.00022,7]
[384381286,1757356260866,-151.0,0.00022,7]
[384381287,1757356260876,-151.0,0.00022,7]
[384381288,1757356260885,-151.0,0.00022,7]
[384381289,1757356260894,-151.0,0.00022,7]
[384381290,1757356260904,-151.0,0.00022,7]
[384381291,1757356260913,-151.0,0.00022,7]
[384381292,1757356260923,-151.240001,0.00022,7]
[384381293,1757356260932,-299.339111,0.00022,7]
[384381294,1757356260941,-151.0,0.00022,7]
[384381295,1757356260951,-169.916764,0.00022,7]
[384381296,1757356260960,-151.0,0.00022,7]
[384381297,1757356260971,-151.0,0.00022,7]
[384381298,1757356260981,-151.0,0.00022,7]
[384381299,1757356260990,-151.0,0.00022,7]
[384381300,1757356261000,-203.26219058,0.00022,7]
[384381301,1757356261010,-203.26219058,0.00022,10]
[384381302,1757356261019,-151.0,0.00022,7]
[384381303,1757356261029,-151.0,0.00022,7]
[384381304,1757356261038,-151.0,0.00022,7]
[384381305,1757356261048,-151.0,0.00022,7]
[384381306,1757356261057,-151.0,0.00022,7]
[384381307,1757356261067,-1658.295599,0.00022,7]
[384381308,1757356261076,-151.0,0.00022,7]
[384381309,1757356261085,-151.0,0.00022,7]
[384381310,1757356261094,-1658.295599,0.00022,7]
[384381311,1757356261104,-151.0,0.00022,7]
[384381312,1757356261113,-151.0,0.00022,7]
[384381313,1757356261122,-1658.295599,0.00022,7]
[384381314,1757356261132,-1658.295599,0.00022,7]
[384381315,1757356261141,-151.0,0.00022,7]
[384381316,1757356261151,-151.0,0.00022,7]
[384381317,1757356261160,-151.0,0.00022,7]
[384381318,1757356261169,-151.0,0.00022,7]
[384381319,1757356261178,-261.647586,0.00022,7]
[384381320,1757356261188,-151.0,0.00022,7]
[384381321,1757356261197,-151.0,0.00022,7]
[384381322,1757356261207,-151.0,0.00022,7]
[384381323,1757356261216,-151.0,0.00022,7]
[384381324,1757356261226,-151.0,0.00022,7]
[384381325,1757356261235,-431.625652,0.00022,7]
[384381326,1757356261245,-530.71506861,0.00022,7]
[384381327,1757356261254,-431.625652,0.00022,7]
[384381328,1757356261263,-530.71506861,0.00022,10]
[384381329,1757356261273,-431.625652,0.00022,7]
[384381330,1757356261282,-431.625652,0.00022,7]
[384381331,1757356261291,-151.0,0.00022,7]
[384381332,1757356261301,-417.15472785,0.00022,7]
[384381333,1757356261311,-417.15472785,0.00022,10]
[384381334,1757356261320,-499.788406,0.00022,7]
[384381335,1757356261329,-499.788406,0.00022,7]
[384381336,1757356261339,-499.788406,0.00022,7]
[384381337,1757356261348,-499.788406,0.00022,7]
[384381338,1757356261358,-355.52935441,0.00022,2]
[384381339,1757356261367,-168.36413254,0.00022,10]
[384381340,1757356261377,-362.21,0.00022,2]
[384381341,1757356261387,-1560.0,0.00022021,2]
[384381342,1757356261396,-404.53160656,0.00022042,2]
[384381343,1757356261406,-151.0,0.000221,8]
[384381344,1757356261416,-193.01922074,0.000221,2]
[384381345,1757356261425,-160.0,0.00022164,4]
[384381346,1757356261435,-157.0,0.00022192,2]
[384381347,1757356261444,-151.0,0.00022192,7]
[384381348,1757356261454,-312.233565,0.00022192,7]
[384381349,1757356261463,-312.233565,0.00022192,7]
[384381350,1757356261472,-312.233565,0.00022192,7]
[384381351,1757356261482,-312.233565,0.00022192,7]
[384381352,1757356261491,-151.0,0.00022192,7]
[384381353,1757356261501,-151.0,0.00022192,7]
[384381354,1757356261511,-151.0,0.00022192,7]
[384381355,1757356261520,-151.0,0.00022192,7]
[384381356,1757356261529,-500.0,0.00022192,2]
[384381357,1757356261539,-157.0,0.00022192,2]
[384381358,1757356261548,-157.0,0.00022192,2]
[384381359,1757356261558,-157.0,0.00022192,2]
[384381360,1757356261567,-157.0,0.00022192,2]
[384381361,1757356261576,-500.0,0.00022192,2]
[384381362,1757356261586,-305.18191659,0.00022192,2]
[384381363,1757356261595,-500.0,0.00022192,2]
[384381364,1757356261604,-500.0,0.00022192,2]
[384381365,1757356261613,-500.0,0.00022192,2]
[384381366,1757356261622,-500.0,0.00022192,2]
[384381367,1757356261632,-500.0,0.00022192,2]
[384381368,1757356261641,-157.0,0.00022192,2]
[384381369,1757356261651,-585.636754,0.00022192,7]
[384381370,1757356261660,-585.636754,0.00022192,7]
[384381371,1757356261670,-585.636754,0.00022192,7]
[384381372,1757356261679,-151.0,0.00022192,7]
[384381373,1757356261688,-585.636754,0.00022192,7]
[384381374,1757356261698,-151.0,0.00022192,7]
[384381375,1757356261707,-151.0,0.00022192,7]
[384381376,1757356261717,-151.0,0.00022192,7]
[384381377,1757356261726,-500.0,0.00022192,2]
[384381378,1757356261735,-157.0,0.00022192,2]
[384381379,1757356261745,-308.0,0.00022192,2]
[384381380,1757356261755,-500.0,0.00022192,2]
[384381381,1757356261764,-500.0,0.00022192,2]
[384381382,1757356261879,-157.0,0.00022192,2]
[384381383,1757356261900,-157.0,0.00022192,2]
[384381384,1757356261910,-500.0,0.00022192,2]
[384381385,1757356261920,-500.0,0.00022192,2]
[384381386,1757356261929,-157.0,0.00022192,2]
[384381387,1757356261939,-157.0,0.00022192,2]
[384381388,1757356261948,-157.0,0.00022192,2]
[384381389,1757356261957,-308.34736609,0.00022192,2]
[384381390,1757356261968,-500.0,0.00022192,2]
[384381391,1757356261980,-157.0,0.00022192,2]
[384381392,1757356261990,-157.0,0.00022192,2]
[384381393,1757356261999,-157.0,0.00022192,2]
[384381394,1757356262008,-500.0,0.00022192,2]
[384381395,1757356262019,-500.0,0.00022192,2]
[384381396,1757356262028,-157.0,0.00022192,2]
[384381397,1757356262038,-157.0,0.00022192,2]
[384381398,1757356262049,-157.0,0.00022192,2]
[384381399,1757356262058,-500.0,0.00022192,2]
[384381400,1757356262067,-500.0,0.00022192,2]
[384381401,1757356262076,-157.0,0.00022192,2]
[384381402,1757356262086,-155.314401,0.00022218,2]
[384381403,1757356262096,-19936.98109048,0.00022447,2]
[384381404,1757356262105,-300.0,0.00022466,2]
[384381405,1757356262117,-157.0,0.00022466,2]
[384381406,1757356262127,-500.0,0.00022466,2]
[384381407,1757356262136,-157.0,0.00022466,2]
[384381408,1757356262146,-157.0,0.00022466,2]
[384381409,1757356262155,-157.0,0.00022466,2]
[384381410,1757356262165,-157.0,0.00022466,2]
[384381411,1757356262174,-500.0,0.00022466,2]
[384381412,1757356262183,-500.0,0.00022466,2]
[384381413,1757356262192,-500.0,0.00022466,2]
[384381414,1757356262202,-644.9344424,0.00022466,2]
[384381415,1757356262211,-500.0,0.00022466,2]
[384381416,1757356262221,-500.0,0.00022466,2]
[384381417,1757356262231,-299.5116504,0.00022466,2]
[384381418,1757356262240,-520.92880441,0.00022466,2]
[384381419,1757356262249,-157.0,0.00022466,2]
[384381420,1757356262259,-500.0,0.00022466,2]
[384381421,1757356262269,-500.0,0.00022466,2]
[384381422,1757356262278,-157.0,0.00022466,2]
[384381423,1757356262288,-157.0,0.00022466,2]
[384381424,1757356262297,-500.0,0.00022466,2]
[384381425,1757356262307,-500.0,0.00022466,2]
[384381426,1757356262316,-241.59851013,0.00022466,2]
[384381427,1757356262326,-157.0,0.00022466,2]
[384381428,1757356262335,-157.0,0.00022466,2]
[384381429,1757356262345,-500.0,0.00022466,2]
[384381430,1757356262354,-157.0,0.00022466,2]
[384381431,1757356262364,-157.0,0.00022466,2]
[384381432,1757356262373,-303.37487777,0.00022466,2]
[384381433,1757356262383,-619.98835943,0.00022466,2]
[384381434,1757356262393,-500.0,0.00022466,2]
[384381435,1757356262403,-157.0,0.00022466,2]
[384381436,1757356262412,-520.73,0.00022466,2]
[384381437,1757356262422,-610.0,0.00022466,2]
[384381438,1757356262431,-1000.0,0.000225,20]
[384381439,1757356262441,-492.0,0.000225,20]
[384381440,1757356262450,-151.0,0.000225,7]
[384381441,1757356262460,-257.504721,0.000225,7]
[384381442,1757356262471,-469.573863,0.000225,7]
[384381443,1757356262496,-151.0,0.000225,7]
[384381444,1757356262505,-151.0,0.000225,7]
[384381445,1757356262515,-469.573863,0.000225,7]
[384381446,1757356262525,-469.573863,0.000225,7]
[384381447,1757356262535,-469.573863,0.000225,7]
[384381448,1757356262544,-151.0,0.000225,2]
[384381449,1757356262554,-151.7098,0.000225,2]
[384381450,1757356262564,-151.0,0.000225,7]
[384381451,1757356262574,-151.0,0.000225,7]
[384381452,1757356262583,-151.0,0.000225,7]
[384381453,1757356262593,-151.0,0.000225,7]
[384381454,1757356262603,-151.0,0.000225,7]
[384381455,1757356262615,-155.959449,0.000225,7]
[384381456,1757356262629,-1014.48228306,0.000225,2]
[384381457,1757356262650,-4000.0,0.000225,4]
[384381458,1757356262666,-201.0,0.0002255,5]
[384381459,1757356262678,-5000.0,0.00022567,2]
[384381460,1757356262687,-598.18996234,0.00022569,2]
[384381461,1757356262697,-500.0,0.00022626,2]
[384381462,1757356262706,-761.0,0.00022709,2]
[384381463,1757356262717,-157.0,0.0002274,2]
[384381464,1757356262727,-157.0,0.0002274,2]
[384381465,1757356262738,-293.0912377,0.0002274,2]
[384381466,1757356262748,-157.0,0.0002274,2]
[384381467,1757356262758,-157.0,0.0002274,2]
[384381468,1757356262767,-157.0,0.0002274,2]
[384381469,1757356262777,-157.0,0.0002274,2]
[384381470,1757356262787,-157.0,0.0002274,2]
[384381471,1757356262797,-157.0,0.0002274,2]
[384381472,1757356262806,-157.0,0.0002274,2]
[384381473,1757356262816,-302.18639333,0.0002274,2]
[384381474,1757356262826,-598.0,0.0002274,2]
[384381475,1757356262836,-157.0,0.0002274,2]
[384381476,1757356262846,-157.0,0.0002274,2]
[384381477,1757356262856,-166.89357352,0.0002274,2]
[384381478,1757356262866,-157.0,0.0002274,2]
[384381479,1757356262876,-157.0,0.0002274,2]
[384381480,1757356262888,-157.0,0.0002274,2]
[384381481,1757356262899,-157.0,0.0002274,2]
[384381482,1757356262909,-500.0,0.0002274,2]
[384381483,1757356262919,-157.0,0.0002274,2]
[384381484,1757356262930,-157.0,0.0002274,2]
[384381485,1757356262940,-157.0,0.0002274,2]
[384381486,1757356262953,-157.0,0.0002274,2]
[384381487,1757356262964,-2100.0,0.00022808,2]
[384381488,1757356262977,-362.21,0.00022839,2]
[384381489,1757356262987,-761.0,0.0002295,2]
[384381490,1757356262997,-761.0,0.00023,2]
[384381491,1757356263007,-12301.15794082,0.00023,2]
[384381492,1757356263018,-2006.42643913,0.00023,2]
[384381493,1757356263028,-1161.30632976,0.00023,3]
[384381494,1757356263038,-20162.20195018,0.00023,2]
[384381495,1757356263049,-2951.33394385,0.00023,2]
[384381496,1757356263059,-450.0,0.00023014,2]
[384381497,1757356263069,-500.0,0.00023014,2]
[384381498,1757356263079,-157.0,0.00023014,2]
[384381499,1757356263088,-761.0,0.0002304,2]
[384381500,1757356263098,-160.0,0.00023051,5]
[384381501,1757356263107,-160.6548987,0.00023199,2]
[384381502,1757356263117,-761.0,0.00023199,2]
[384381503,1757356263126,-73975.63,0.000232,2]
[384381504,1757356263136,-151.0,0.000232,7]
[384381505,1757356263146,-151.0,0.000232,7]
[384381506,1757356263155,-166.527094,0.000232,7]
[384381507,1757356263166,-151.0,0.000232,7]
[384381508,1757356263176,-151.0,0.000232,7]
[384381509,1757356263186,-151.0,0.000232,7]
[384381510,1757356263196,-151.0,0.000232,7]
[384381511,1757356263206,-175.500556,0.000232,7]
[384381512,1757356263215,-151.0,0.000232,7]
[384381513,1757356263226,-151.0,0.000232,7]
[384381514,1757356263235,-151.0,0.000232,7]
[384381515,1757356263245,-151.0,0.000232,7]
[384381516,1757356263254,-151.0,0.000232,7]
[384381517,1757356263264,-151.0,0.000232,7]
[384381518,1757356263274,-151.0,0.000232,7]
[384381519,1757356263283,-151.0,0.000232,7]
[384381520,1757356263293,-192.40792,0.000232,7]
[384381521,1757356263303,-151.0,0.000232,7]
[384381522,1757356263312,-151.0,0.000232,7]
[384381523,1757356263322,-154.774767,0.000232,7]
[384381524,1757356263331,-151.0,0.000232,7]
[384381525,1757356263340,-151.0,0.000232,7]
[384381526,1757356263350,-151.0,0.000232,7]
[384381527,1757356263360,-370.341663,0.000232,7]
[384381528,1757356263370,-151.0,0.000232,7]
[384381529,1757356263381,-370.341663,0.000232,7]
[384381530,1757356263391,-370.341663,0.000232,7]
[384381531,1757356263401,-370.341663,0.000232,7]
[384381532,1757356263411,-155.314401,0.0002325,3]
[384381533,1757356263421,-451.07182503,0.00023256,2]
[384381534,1757356263431,-397.88658338,0.00023287,2]
[384381535,1757356263441,-151.0,0.00023287,7]
[384381536,1757356263451,-151.0,0.00023287,7]
[384381537,1757356263461,-151.0,0.00023287,7]
[384381538,1757356263471,-151.0,0.00023287,7]
[384381539,1757356263481,-151.0,0.00023287,7]
[384381540,1757356263491,-151.0,0.00023287,7]
[384381541,1757356263500,-151.0,0.00023287,7]
[384381542,1757356263510,-151.0,0.00023287,7]
[384381543,1757356263520,-194.042856,0.00023287,7]
[384381544,1757356263530,-151.0,0.00023287,7]
[384381545,1757356263539,-2257.6,0.00023287,2]
[384381546,1757356263549,-151.0,0.00023288,7]
[384381547,1757356263559,-151.0,0.00023288,7]
[384381548,1757356263569,-500.0,0.00023288,2]
[384381549,1757356263579,-157.0,0.00023288,2]
[384381550,1757356263589,-6647.77,0.000233,7]
[384381551,1757356263599,-7022.05,0.000233,7]
[384381552,1757356263608,-3928.26,0.000233,7]
[384381553,1757356263618,-77475.02,0.000233,7]
[384381554,1757356263627,-151.0,0.000233,7]
[384381555,1757356263637,-151.0,0.000233,7]
[384381556,1757356263647,-151.0,0.000233,7]
[384381557,1757356263656,-274.009321,0.000233,7]
[384381558,1757356263666,-151.0,0.000233,7]
[384381559,1757356263676,-151.0,0.000233,7]
[384381560,1757356263685,-151.0,0.000233,7]
[384381561,1757356263695,-151.0,0.000233,7]
[384381562,1757356263703,-151.0,0.000233,7]
[384381563,1757356263712,-151.0,0.000233,7]
[384381564,1757356263722,-1658.295599,0.000233,7]
[384381565,1757356263731,-151.0,0.000233,7]
[384381566,1757356263740,-163.634668,0.000233,7]
[384381567,1757356263749,-1658.295599,0.000233,7]
[384381568,1757356263759,-151.0,0.000233,7]
[384381569,1757356263769,-151.0,0.000233,7]
[384381570,1757356263778,-1658.295599,0.000233,7]
[384381571,1757356263788,-1658.295599,0.000233,7]
[384381572,1757356263797,-151.0,0.000233,7]
[384381573,1757356263807,-151.0,0.000233,7]
[384381574,1757356263816,-151.0,0.000233,7]
[384381575,1757356263826,-151.0,0.000233,7]
[384381576,1757356263836,-151.0,0.000233,7]
[384381577,1757356263846,-151.0,0.000233,7]
[384381578,1757356263857,-151.0,0.000233,7]
[384381579,1757356263867,-151.0,0.000233,7]
[384381580,1757356263878,-151.0,0.000233,7]
[384381581,1757356263888,-431.625652,0.000233,7]
[384381582,1757356263898,-431.625652,0.000233,7]
[384381583,1757356263908,-431.625652,0.000233,7]
[384381584,1757356263918,-431.625652,0.000233,7]
[384381585,1757356263927,-151.0,0.000233,7]
[384381586,1757356263937,-499.788406,0.000233,7]
[384381587,1757356263946,-499.788406,0.000233,7]
[384381588,1757356263956,-499.788406,0.000233,7]
[384381589,1757356263966,-499.788406,0.000233,7]
[384381590,1757356263979,-761.0,0.00023356,2]
[384381591,1757356263989,-761.0,0.00023448,2]
[384381592,1757356263999,-151.0,0.00023448,7]
[384381593,1757356264010,-151.0,0.00023448,7]
[384381594,1757356264019,-151.0,0.00023448,7]
[384381595,1757356264029,-151.0,0.00023448,7]
[384381596,1757356264038,-761.0,0.0002347,2]
[384381597,1757356264048,-800.0,0.00023494,2]
[384381598,1757356264058,-761.0,0.00023525,2]
[384381599,1757356264069,-761.0,0.00023541,2]
[384381600,1757356264078,-600.0,0.00023562,2]
[384381601,1757356264088,-500.0,0.00023562,2]
[384381602,1757356264098,-215.0,0.00023562,2]
[384381603,1757356264108,-800.0,0.00023612,2]
[384381604,1757356264117,-155.314401,0.00023625,3]
[384381605,1757356264127,-888.64302382,0.00023664,2]
[384381606,1757356264137,-362.21,0.00023679,2]
[384381607,1757356264147,-155.314401,0.00023709,20]
[384381608,1757356264157,-761.0,0.00023709,2]
[384381609,1757356264168,-19936.98109048,0.0002372,2]
[384381610,1757356264178,-643.65703463,0.0002375,5]
[384381611,1757356264188,-761.0,0.00023816,2]
[384381612,1757356264199,-500.0,0.00023836,2]
[384381613,1757356264209,-761.0,0.00023862,2]
[384381614,1757356264218,-761.0,0.00023865,2]
[384381615,1757356264229,-2100.0,0.00023904,2]
[384381616,1757356264238,-761.0,0.00023921,2]